[Event "84th Armenian-HL-ch 2024"]
[Site "Yerevan"]
[Date "2024.01.18"]
[Round "7.3"]
[White "Hovhannisyan, Robert"]
[Black "Ter-Sahakyan, Samvel"]
[Result "1-0"]
[ECO "B92"]
[WhiteElo "2611"]
[BlackElo "2649"]
[Annotator "TA"]
[PlyCount "125"]
[EventDate "2024.01.11"]
[EventType "tourn"]
[EventCountry "ARM"]
[SourceTitle "playchess.com"]
[Source "ChessBase"]
[SourceQuality "1"]
[TimeControl "40/5400+30:1800+30"]

{[%evp 21,125,0,0,0,0,0,0,0,8,6,4,8,6,0,8,2,8,15,13,7,13,0,9,6,6,0,8,8,10,8,8,8,8,8,8,8,8,8,8,0,0,0,0,0,156,156,156,156,156,156,156,156,156,156,156,156,156,156,156,156,156,156,156,156,156,156,156,156,156,156,156,156,156,156,156,156,156,156,443,443,443,443,443,443,443,443,443,443,443,443,448,448,7476,6554,3964,156,665,448,448,471,8355,2237,29966,1541,29979,29979]} 1. e4 {[%emt 0:00:03]} c5 {[%emt 0:00:05]} 2. Nf3 {[%emt 0:00:15]} d6 {[%emt 0:00:06]} 3. d4 {[%emt 0:00:13]} cxd4 {[%emt 0:00:06]} 4. Nxd4 {[%emt 0:00:04]} Nf6 {[%emt 0:00:14]} 5. Nc3 {[%emt 0:00:07]} a6 {[%emt 0:00:04]} 6. Be2 {[%emt 0:00:22]} e5 {[%emt 0:00:05]} 7. Nb3 {[%emt 0:00:06]} Be7 {[%emt 0:00:05]} 8. Be3 {[%emt 0:00:17]} Be6 {[%emt 0:00:10]} 9. f4 {[%emt 0:00:19]} exf4 {[%emt 0:06:08]} 10. Bxf4 {[%emt 0:00:16]} Nc6 {[%emt 0:00:08]} 11. Qd2 {[%emt 0:00:17]} d5 {[%emt 0:00:37]} 12. exd5 {[%emt 0:00:21] B92: Sicilian Najdorf: 6 Be2.} Nxd5 {[%emt 0:01:07]} 13. Nxd5 {[%emt 0:00:06]} Qxd5 {[%emt 0:04:03]} 14. O-O-O {[%emt 0:00:25] The position is equal.} Qxg2 {[%emt 0:07:19]} 15. Rhg1 {[%emt 0:01:44]} Qe4 {[%emt 0:00:30]} 16. Rxg7 {[%emt 0:01:52]} Rd8 {[%emt 0:19:34]} 17. Qe3 {[%emt 0:01:04]} Rxd1+ {[%emt 0:07:11]} (17... Qxe3+ {simplifies} 18. Bxe3 Rxd1+ 19. Bxd1 h5) 18. Bxd1 {[%emt 0:00:47]} Qxe3+ {[%emt 0:13:17]} 19. Bxe3 {[%emt 0:00:06]} h5 {[%emt 0:00:02]} 20. Rg1 {[%emt 0:00:54]} Bg4 {[%emt 0:14:16] [#] Prevents Bf3.} 21. Nc5 $146 {[%emt 0:03:27]} ({Predecessor:} 21. c3 Bd6 22. Rg2 Kd7 23. Nc5+ Bxc5 24. Bxc5 Bxd1 25. Kxd1 Ke6 26. Ke2 Rd8 27. Bb6 {½-½ Tkachenko,Y (2331)-Morozov,D (2475) Webchess op7 sf02 email 2019}) 21... Nd8 {[%emt 0:01:48]} 22. c4 {[%emt 0:27:01]} Bxd1 {[%emt 0:02:36]} 23. Kxd1 {[%emt 0:00:38]} Bxc5 {[%emt 0:00:27]} 24. Bxc5 $11 {[%emt 0:00:05][%mdl 4096] Endgame KRB-KRN} Ne6 {[%emt 0:00:07]} 25. Bb4 {[%emt 0:03:47]} Rh6 {[%emt 0:02:30]} 26. Ke2 {[%emt 0:09:06]} Rg6 {[%emt 0:04:32]} 27. Rxg6 {[%emt 0:00:41]} fxg6 {[%emt 0:00:46][%cal Bf7g6,Bg6g5,Bg5g4][%mdl 32] KB-KN} 28. Ke3 {[%emt 0:05:16]} g5 {[%emt 0:00:28]} 29. Ke4 {[%emt 0:05:46] White wants to play Bc3.} g4 $1 {[%emt 0:04:54]} 30. Bd2 {[%emt 0:01:30]} Kf7 {[%emt 0:05:12]} 31. Ke5 {[%emt 0:02:03]} h4 {[%emt 0:05:15]} 32. Be3 {[%emt 0:00:54]} Ng7 $2 {[%emt 0:01:20]} ({Better is} 32... g3 $11 33. hxg3 hxg3) 33. Bf2 $1 $16 {[%emt 0:19:43]} g3 {[%emt 0:00:11]} 34. hxg3 {[%emt 0:00:04]} hxg3 {[%emt 0:00:35]} 35. Bxg3 {[%emt 0:00:06]} Ke7 {[%emt 0:00:33]} 36. Bf2 {[%emt 0:03:00]} Kd7 {[%emt 0:00:26]} 37. Kd5 {[%emt 0:00:03]} Ne8 {[%emt 0:01:19]} 38. Bg1 {[%emt 0:03:51]} Nd6 {[%emt 0:00:38]} 39. a4 {[%emt 0:08:08][%cal Ba2a4,Ba4a5][%mdl 32]} Nc8 {[%emt 0:00:29]} 40. a5 {[%emt 0:00:00] b4 is the strong threat.} Ne7+ {[%emt 0:00:00]} 41. Kc5 {[%emt 0:01:06]} Nc6 {[%emt 0:06:45]} 42. b4 {[%emt 0:02:42]} Ne5 {[%emt 0:11:36]} 43. Bh2 {[%emt 0:02:10]} Nd3+ {[%emt 0:04:53]} 44. Kb6 {[%emt 0:00:05]} Kc8 {[%emt 0:00:08]} 45. Bd6 {[%emt 0:02:41]} Nb2 {[%emt 0:02:26]} 46. Kc5 {[%emt 0:03:24] Threatens to win with Kd4.} Kd7 {[%emt 0:02:44][%cal Ob7b6]} 47. Bf8 {[%emt 0:03:19]} Nd3+ {[%emt 0:02:26]} 48. Kd4 {[%emt 0:03:12]} Nf4 {[%emt 0:00:09] aiming for ...Ne6+.} 49. Bh6 {[%emt 0:00:07]} Ne6+ {[%emt 0:01:39]} (49... Ng6 $16 50. b5 Kd6) 50. Kd5 $1 $18 {[%emt 0:00:39]} Ke7 {[%emt 0:00:19]} 51. Bd2 {[%emt 0:02:12]} Kd7 {[%emt 0:00:07]} 52. Be3 {[%emt 0:00:14]} Ke7 {[%emt 0:01:50]} 53. Bc5+ {[%emt 0:01:11]} Kd7 {[%emt 0:00:01]} 54. Bd6 {[%emt 0:00:07]} Ng7 {[%emt 0:00:52]} 55. Bh2 {[%emt 0:01:24] And now Kc5 would win.} Ne6 {[%emt 0:00:24]} 56. Be5 {[%emt 0:06:16]} Nd8 {[%emt 0:01:04]} (56... Ng5 $142 57. b5 axb5 58. cxb5 Ne6) 57. Kc5 {[%emt 0:01:16]} Nc6 {[%emt 0:00:28]} 58. Bc3 $2 {[%emt 0:02:49]} (58. Bg3 $18 Kc8 59. Bf4) 58... Ne7 $2 {[%emt 0:00:16] This costs Black the game.} (58... Kc8 $16 59. Bf6 Kd7) 59. Kb6 {[%emt 0:01:29]} Kc8 {[%emt 0:00:03] [#]} 60. Be5 {[%emt 0:00:13]} Nc6 {[%emt 0:00:23] [#]} (60... Nf5 $142 61. Bf4 Ne7) 61. Bd6 $1 {[%emt 0:00:06] b5 would kill now.} Kd7 {[%emt 0:01:33]} 62. b5 {[%emt 0:00:35]} (62. c5 $142 Nxb4 63. Kxb7 Nd3 64. Bf8 Ne5 65. Bh6 Ke7 66. c6 Nf7 67. Kxa6 Nxh6 68. c7) 62... axb5 {[%emt 0:00:57]} 63. cxb5 {[%emt 0:00:05] Weighted Error Value: White=0.21 (precise) /Black=0.42} 1-0

[Event "84th Armenian-HL-ch 2024"]
[Site "Yerevan"]
[Date "2024.01.18"]
[Round "7.4"]
[White "Andriasian, Zaven"]
[Black "Petrosyan, Manuel"]
[Result "1/2-1/2"]
[ECO "C54"]
[WhiteElo "2581"]
[BlackElo "2627"]
[Annotator "TA"]
[PlyCount "49"]
[EventDate "2024.01.11"]
[EventType "tourn"]
[EventCountry "ARM"]
[SourceTitle "playchess.com"]
[Source "ChessBase"]
[SourceQuality "1"]
[TimeControl "40/5400+30:1800+30"]

{[%evp 12,49,14,6,16,0,7,-12,-4,0,0,-41,-39,-35,-17,-12,-4,-20,-6,-33,-29,-36,-22,-14,-24,-20,-16,-55,-12,-26,0,0,0,0,0,0,0,0,0,0]} 1. e4 {[%emt 1:31:00]} e5 {[%emt 0:06:57]} 2. Nf3 {[%emt 0:00:00]} Nc6 {[%emt 0:00:05]} 3. Bc4 {[%emt 0:00:00]} Bc5 {[%emt 0:00:10]} 4. d3 {[%emt 0:00:00]} Nf6 {[%emt 0:00:12]} 5. Nbd2 {[%emt 0:00:00]} O-O {[%emt 0:00:12]} 6. O-O {[%emt 0:00:00]} d6 {[%emt 0:00:17]} 7. c3 {[%emt 0:00:00]} a5 {[%emt 0:00:19][%cal Ba7a5,Ba5a4][%mdl 32] C54: Giuoco Piano: 4 c3 Nf6, main lines with 5 d4 and 5 d3.} 8. Bb3 {[%emt 0:00:00]} (8. h3 Be6 9. Bb5 Qc8 10. Bxc6 bxc6 11. d4 exd4 12. cxd4 Bb6 13. b3 a4 14. Bb2 axb3 15. axb3 Rxa1 16. Qxa1 d5 {1-0 Andriasian,Z (2611)-Petrosyan,M (2613) Wch Rapid Moscow 2019 (6)}) 8... Be6 {[%emt 0:00:43]} 9. h3 {[%emt 0:00:00]} Bxb3 {[%emt 0:01:39]} 10. Nxb3 {[%emt 0:00:00] [#]} Ba7 $146 {[%emt 0:08:34]} ({Predecessor:} 10... h6 11. Nxc5 dxc5 12. Be3 c4 13. dxc4 Qxd1 14. Raxd1 Nxe4 15. Rfe1 Nf6 16. g4 Rfd8 17. Rxd8+ Rxd8 {½-½ Mamedov,R (2646)-So,W (2766) Airthings Masters Div 1 W rapid 2023 (1.4)}) 11. Be3 {[%emt 0:00:00]} Bxe3 {[%emt 0:08:28]} 12. fxe3 {[%emt 0:00:00]} a4 {[%emt 0:07:03]} 13. Nbd2 {[%emt 0:00:00]} d5 {[%emt 0:00:12]} 14. Qe2 {[%emt 0:00:00]} Qe7 {[%emt 0:09:51]} 15. Rad1 {[%emt 0:00:00]} Rad8 {[%emt 0:08:44]} 16. a3 {[%emt 0:00:00]} dxe4 {[%emt 0:04:36]} 17. Nxe4 {[%emt 0:00:00]} Nxe4 {[%emt 0:00:03]} 18. dxe4 {[%emt 0:00:00]} Qc5 {[%emt 0:00:12] Repels Qb5} 19. Kh2 {[%emt 0:00:00]} g6 {[%emt 0:08:07]} 20. h4 {[%emt 0:00:00][%cal Bh3h4,Bh4h5][%mdl 32]} h6 {[%emt 0:15:05]} 21. h5 {[%emt 0:00:00] The position is equal.} Kg7 {[%emt 0:02:41]} ({But not} 21... gxh5 22. Rxd8 Nxd8 23. Nh4 $14) 22. Nh4 {[%emt 0:00:00] [#] Hoping for hxg6.} Qe7 {[%emt 0:00:58]} 23. Nf3 {[%emt 0:00:00]} Qc5 {[%emt 0:02:23]} 24. Nh4 {[%emt 0:00:00] hxg6 is the strong threat.} Qe7 {[%emt 0:00:06]} 25. Nf3 {[%emt 0:00:00] Weighted Error Value: White=0.10 (very precise) /Black=0.06 (flawless)} 1/2-1/2

[Event "84th Armenian-HL-ch 2024"]
[Site "Yerevan"]
[Date "2024.01.18"]
[Round "7.5"]
[White "Piliposyan, Robert"]
[Black "Tiraturyan, David"]
[Result "1/2-1/2"]
[ECO "B51"]
[WhiteElo "2367"]
[BlackElo "2258"]
[Annotator "TA"]
[PlyCount "80"]
[EventDate "2024.01.11"]
[EventType "tourn"]
[EventCountry "ARM"]
[SourceTitle "playchess.com"]
[Source "ChessBase"]
[SourceQuality "1"]
[TimeControl "40/5400+30:1800+30"]

{[%evp 14,80,24,29,33,41,68,68,66,31,55,16,27,21,37,0,0,1,10,0,48,0,20,-16,0,-16,30,44,56,52,34,58,53,62,133,83,73,37,87,66,90,79,82,43,29,41,41,42,134,133,117,95,107,112,114,114,114,115,114,110,112,108,112,13,13,0,0,0,2]} 1. e4 {[%emt 0:00:26]} c5 {[%emt 0:01:30]} 2. Nf3 {[%emt 0:00:17]} Nc6 {[%emt 0:00:05]} 3. Bb5 {[%emt 0:00:04]} d6 {[%emt 0:00:32]} 4. O-O {[%emt 0:00:12]} Bd7 {[%emt 0:00:05]} 5. Re1 {[%emt 0:00:05]} Nf6 {[%emt 0:00:38]} 6. c3 {[%emt 0:00:27]} a6 {[%emt 0:00:11]} 7. Bf1 {[%emt 0:00:09]} Bg4 {[%emt 0:00:05]} 8. d4 {[%emt 0:00:10]} Bxf3 {[%emt 0:01:06] B51: Sicilian: Moscow Variation (3 Bb5+) without 3...Bd7.} 9. gxf3 {[%emt 0:00:24]} g6 {[%emt 0:00:05]} 10. d5 {[%emt 0:01:00]} Nb8 {[%emt 0:00:04] White is slightly better.} 11. f4 {[%emt 0:09:35]} Bh6 {[%emt 0:00:14] [#]} 12. Qf3 $146 {[%emt 0:12:34]} ({Predecessor:} 12. Bh3 Nh5 13. Qf3 Nd7 14. Be3 O-O 15. Nd2 e6 16. Nc4 exd5 17. Nxd6 dxe4 18. Nxe4 {½-½ Teterev,V (2511)-Shirov,A (2749) EU-Cup 26th Plovdiv 2010 (4.3)}) 12... O-O {[%emt 0:02:19]} 13. Bh3 {[%emt 0:01:58] Repels e6} Nh5 {[%emt 0:06:12]} 14. Bg4 {[%emt 0:08:20]} Nf6 {[%emt 0:00:16]} 15. Nd2 {[%emt 0:03:59]} Kh8 {[%emt 0:12:40][%cal Oe7e6]} 16. Nf1 {[%emt 0:07:03]} Nbd7 {[%emt 0:02:17]} (16... e6 $11) 17. Ng3 {[%emt 0:04:38]} (17. Bh3 $1 $14 {should be considered.}) 17... Qc7 {[%emt 0:04:31]} 18. Bxd7 {[%emt 0:11:21]} Nxd7 {[%emt 0:01:30]} 19. h4 {[%emt 0:02:00]} Rae8 {[%emt 0:03:08]} (19... Rg8 {is superior.}) 20. h5 $11 {[%emt 0:03:06]} e6 {[%emt 0:02:38]} 21. Qh1 {[%emt 0:05:12] [#] Threatens to win with hxg6.} Bg7 {[%emt 0:02:44]} 22. dxe6 {[%emt 0:03:24]} Rxe6 {[%emt 0:00:27]} 23. Be3 {[%emt 0:00:41]} ({Much weaker is} 23. f5 gxf5 24. Nxf5 d5 $15) 23... Kg8 {[%emt 0:05:50]} (23... Rg8 $14) 24. hxg6 {[%emt 0:05:52]} (24. Re2 $142) 24... fxg6 $16 {[%emt 0:00:55]} 25. Qh3 {[%emt 0:05:47]} Ree8 {[%emt 0:06:11]} (25... Re7 $14) 26. Rad1 {[%emt 0:01:57]} Nf6 {[%emt 0:03:03]} 27. f3 {[%emt 0:00:15]} Qc6 {[%emt 0:02:42]} 28. c4 {[%emt 0:01:08]} b5 {[%emt 0:00:06]} 29. b3 {[%emt 0:00:18]} bxc4 {[%emt 0:01:10]} 30. bxc4 {[%emt 0:00:04]} Qa4 {[%emt 0:00:07]} ({Better is} 30... Nd7 $14) 31. Rxd6 {[%emt 0:01:17]} Qxc4 {[%emt 0:00:06]} 32. Qf1 {[%emt 0:01:43] White is much more active.} Qxa2 {[%emt 0:04:23]} 33. Rxa6 {[%emt 0:00:26]} Qb3 {[%emt 0:00:14][%cal Of6d5]} 34. Bxc5 {[%emt 0:00:50] Hoping for Re3.} Rf7 {[%emt 0:00:05]} 35. Ra3 $36 {[%emt 0:05:08][%mdl 2048] White has strong initiative.} Qb8 {[%emt 0:01:31] [#]} 36. Be3 {[%emt 0:00:44]} Bh6 {[%emt 0:01:17]} 37. Rb1 {[%emt 0:00:31]} Qc7 {[%emt 0:00:55]} 38. Ra7 {[%emt 0:00:27]} ({White should try} 38. Qc1 $16) 38... Qc3 $11 {[%emt 0:00:12] The position is equal.} 39. Qe1 {[%emt 0:02:29]} Qxe1+ {[%emt 0:01:25]} 40. Rxe1 {[%emt 0:00:00]} Rxa7 {[%emt 0:00:00] Weighted Error Value: White=0.18 (very precise) /Black=0.13 (very precise)} 1/2-1/2

[Event "84th Armenian-HL-ch 2024"]
[Site "Yerevan"]
[Date "2024.01.19"]
[Round "8.1"]
[White "Davtyan, Artur"]
[Black "Piliposyan, Robert"]
[Result "1-0"]
[ECO "B48"]
[WhiteElo "2477"]
[BlackElo "2367"]
[Annotator "TA"]
[PlyCount "113"]
[EventDate "2024.01.11"]
[EventType "tourn"]
[EventCountry "ARM"]
[SourceTitle "playchess.com"]
[Source "ChessBase"]
[SourceQuality "1"]
[TimeControl "40/5400+30:1800+30"]

{[%evp 11,113,29,15,22,22,22,55,34,45,39,66,-68,-45,-94,-32,-45,-37,-52,0,0,-20,-5,-6,-41,-36,-6,1,13,75,72,58,41,57,62,60,63,142,16,29,4,56,27,101,114,302,321,325,367,357,350,345,250,266,245,245,236,535,533,533,496,484,481,579,531,472,467,468,448,477,469,469,462,432,285,237,341,603,473,466,452,516,492,1339,1311,1468,1229,992,704,1441,1308,1362,1379,1229,1055,29966,29966,1590,1060,1002,941,1319,1212,1116,966]} 1. e4 {[%emt 0:00:02]} c5 {[%emt 0:00:04]} 2. Nf3 {[%emt 0:00:06]} e6 {[%emt 0:00:05]} 3. d4 {[%emt 0:00:05]} cxd4 {[%emt 0:00:04]} 4. Nxd4 {[%emt 0:00:06]} Nc6 {[%emt 0:00:03]} 5. Nc3 {[%emt 0:00:06]} Qc7 {[%emt 0:00:04]} 6. Be3 {[%emt 0:00:18]} a6 {[%emt 0:00:04]} 7. Qf3 {[%emt 0:00:18] B48: Sicilian: Taimanov: 5 Nc3 Qc7 6 Be3 a6 without Be2.} Ne5 {[%emt 0:00:24]} 8. Qg3 {[%emt 0:00:43]} h5 {[%emt 0:00:05]} 9. f4 {[%emt 0:12:44] White is slightly better.} (9. Bf4 $5 {[%cal Rf4e5]} d6 10. Bg5 $14) 9... h4 {[%emt 0:01:24]} 10. Qh3 {[%emt 0:00:44]} Nc4 {[%emt 0:00:16]} 11. Bc1 {[%emt 0:18:58]} (11. Bxc4 $14 Qxc4 12. a3) 11... b5 $1 $15 {[%emt 0:20:46][%cal Bb7b5,Bb5b4][%mdl 32]} 12. Qd3 {[%emt 0:00:17] [#]} (12. Bd3 $15) 12... Nb6 $146 {[%emt 0:08:54]} (12... Bb7 $1 $17) ({Predecessor:} 12... Bb7 13. a4 b4 14. Ncb5 axb5 15. Nxb5 Qa5 16. Qxc4 Rc8 17. Qd4 Nf6 18. Bd3 d5 {1-0 Luque Saiz,A (2286)-Salgado Lopez,O (2070) Benidorm Bali op-A 2022 (8)}) 13. a4 {[%emt 0:04:53]} b4 {[%emt 0:03:08]} 14. Nd1 {[%emt 0:03:54]} Bb7 {[%emt 0:02:28]} (14... d5 $5 {[%cal Rd5e4]} 15. e5 Bb7 $11) 15. a5 $36 {[%emt 0:00:30][%mdl 2048] White has good play.} Nc8 {[%emt 0:00:07]} 16. Be2 {[%emt 0:04:16]} Nf6 {[%emt 0:02:14]} 17. Bf3 {[%emt 0:01:38]} e5 {[%emt 0:03:41]} 18. Ne2 {[%emt 0:03:41] [#]} d5 $1 {[%emt 0:11:08]} 19. exd5 {[%emt 0:02:14]} Bd6 {[%emt 0:00:36]} (19... e4 $11 {remains equal.} 20. Bxe4 Bc5) 20. fxe5 $16 {[%emt 0:07:30]} Bxe5 {[%emt 0:00:18]} 21. Bd2 {[%emt 0:00:04]} Bd6 {[%emt 0:09:33]} 22. Ne3 {[%emt 0:12:15] Nf5 would be deadly.} Ne7 {[%emt 0:04:56]} 23. c4 {[%emt 0:05:54] Black must now prevent Ra4.} O-O {[%emt 0:03:10] [#]} (23... bxc3 $14 24. Bxc3 Rd8) 24. Qb3 {[%emt 0:07:55]} (24. Ra4 $1 $16) 24... Rab8 $11 {[%emt 0:02:25]} 25. h3 {[%emt 0:00:48]} (25. Bxb4 Bxb4+ 26. Qxb4 Bxd5 27. Nxd5 Nexd5 $11) 25... Bc5 {[%emt 0:01:17]} ({Better is} 25... Bc8 $11) 26. O-O {[%emt 0:00:21]} (26. Bxb4 $2 Bxd5 27. cxd5 (27. Nxd5 $2 Nexd5 28. cxd5 Rxb4 $19) 27... Rxb4 $19) (26. Ng4 $5) 26... Qe5 {[%emt 0:02:15] [#]} (26... Bc8 $11) 27. Kh1 $1 $16 {[%emt 0:00:27] Ng4 is the strong threat.} g5 $2 {[%emt 0:13:59] A mistake that costs the game.} (27... Bd6 $2 28. Ng4 Nxg4 29. Bf4 $18) (27... Ng6 $16) 28. Rfe1 $18 {[%emt 0:01:27]} (28. Ng4 Nxg4 29. Bxg4 Bd6 $14) 28... Nf5 {[%emt 0:00:46]} 29. Nxf5 {[%emt 0:02:25]} (29. Bxb4 $2 Bxb4 30. Qxb4 Nxe3 $19) 29... Qxf5 {[%emt 0:00:05]} 30. Be3 {[%emt 0:00:04]} (30. Bxb4 Bxd5 31. Bxd5 Nxd5 32. cxd5 Bxb4 $11) 30... Bd6 {[%emt 0:00:21]} 31. Nd4 {[%emt 0:00:39][%cal Be2d4,Bd4c2,Bc2b4][%mdl 32]} Qg6 {[%emt 0:00:04]} 32. Qc2 {[%emt 0:00:09]} Qxc2 {[%emt 0:03:23]} 33. Nxc2 {[%emt 0:00:04]} Nh7 {[%emt 0:00:07]} (33... Rfc8 {was necessary.} 34. Bxg5 Nxd5 35. Bxd5 Bxd5) 34. c5 {[%emt 0:01:26]} b3 {[%emt 0:00:15]} 35. Nb4 {[%emt 0:01:08]} Bg3 {[%emt 0:00:06]} 36. Re2 {[%emt 0:04:24]} f5 {[%emt 0:00:24]} 37. Bd4 {[%emt 0:00:20]} Nf6 {[%emt 0:00:25]} 38. Re6 {[%emt 0:05:18]} g4 {[%emt 0:00:30]} 39. Rxf6 {[%emt 0:01:15]} ({Not} 39. Bxf6 gxf3 40. Be5 (40. Nxa6 Bxd5 41. Re7 Rxf6 $19) (40. gxf3 Bc8 $16) 40... Rbd8 41. Bxg3 (41. gxf3 Bxd5 42. Nxd5 Rxd5 $18) 41... Bxd5 $18) 39... Rxf6 {[%emt 0:00:46]} 40. Bxf6 {[%emt 0:00:00]} gxf3 {[%emt 0:00:00]} 41. gxf3 {[%emt 0:00:20]} Ba8 {[%emt 0:00:18]} 42. Nxa6 {[%emt 0:13:00]} Rf8 {[%emt 0:00:16][%cal Oa8d5]} 43. Be7 {[%emt 0:00:06]} Rf7 {[%emt 0:00:15]} (43... Re8) 44. Bd6 {[%emt 0:00:48]} Bxd5 {[%emt 0:02:51]} 45. Bxg3 {[%emt 0:00:19]} hxg3 {[%emt 0:00:23][%mdl 4096] Endgame KRB-KRN} 46. Kg2 {[%emt 0:00:05]} f4 {[%emt 0:00:03]} (46... Ba8 $142 47. Kxg3 f4+ 48. Kg4 Bb7) 47. Nb4 {[%emt 0:03:09]} Ba8 {[%emt 0:01:40]} 48. c6 {[%emt 0:05:16]} Re7 {[%emt 0:00:33]} 49. Kf1 {[%emt 0:03:19]} Kf7 {[%emt 0:00:51]} 50. Rc1 {[%emt 0:00:39]} Rc7 {[%emt 0:00:43]} 51. Rc4 {[%emt 0:03:24]} Ke6 {[%emt 0:00:16]} 52. Kg2 {[%emt 0:01:06]} Ra7 {[%emt 0:02:31]} 53. c7 {[%emt 0:00:30]} Bb7 {[%emt 0:00:04]} 54. c8=Q+ {[%emt 0:00:14] White is clearly winning.} Bxc8 {[%emt 0:00:03]} 55. Rxc8 {[%emt 0:00:04]} Rxa5 {[%emt 0:00:19]} 56. Nd3 {[%emt 0:00:05]} Kd7 {[%emt 0:00:30]} 57. Rc3 {[%emt 0:00:07] Weighted Error Value: White=0.29 (precise) /Black=0.40} 1-0

[Event "84th Armenian-HL-ch 2024"]
[Site "Yerevan"]
[Date "2024.01.19"]
[Round "8.2"]
[White "Petrosyan, Manuel"]
[Black "Harutyunyan, Tigran K."]
[Result "0-1"]
[ECO "B40"]
[WhiteElo "2627"]
[BlackElo "2523"]
[Annotator "TA"]
[PlyCount "54"]
[EventDate "2024.01.11"]
[EventType "tourn"]
[EventCountry "ARM"]
[SourceTitle "playchess.com"]
[Source "ChessBase"]
[SourceQuality "1"]
[TimeControl "40/5400+30:1800+30"]

{[%evp 9,54,0,0,0,0,10,0,-1,0,0,0,-6,-6,-10,-8,0,0,0,0,0,0,0,0,-47,-57,-102,-116,-115,-118,-112,-114,-289,-248,-283,-179,-168,-153,-375,-376,-854,-835,-729,-534,-789,-770,-1561,-1571]} 1. e4 {[%emt 0:03:45]} c5 {[%emt 0:00:44]} 2. Nf3 {[%emt 0:00:13]} e6 {[%emt 0:00:09]} 3. c3 {[%emt 0:03:08]} d5 {[%emt 0:00:36]} 4. e5 {[%emt 0:03:56]} d4 {[%emt 0:00:23]} 5. d3 {[%emt 0:00:47]} Ne7 {[%emt 0:00:45]} 6. g3 {[%emt 0:01:54] B40: Sicilian: 2...e6, Unusual lines.} Nbc6 {[%emt 0:01:05]} 7. Bg2 {[%emt 0:00:20]} Ng6 {[%emt 0:00:14]} 8. Qe2 {[%emt 0:01:36] The position is equal.} Qc7 {[%emt 0:00:34]} 9. Na3 {[%emt 0:00:50]} Bd7 {[%emt 0:01:32][%cal Rg6e5] [#]} (9... Ngxe5 10. Nxe5 Nxe5 11. Bf4 $14) 10. cxd4 $146 {[%emt 0:10:39]} ({Predecessor:} 10. Nb5 Qb8 11. cxd4 a6 12. Na3 cxd4 13. Nc4 Bb4+ 14. Bd2 Bxd2+ 15. Kxd2 Ra7 16. a4 {½-½ Giri,A (2760)-Aditya,M (2572) Qatar Masters op 2023 (3)}) 10... Nxd4 {[%emt 0:09:19]} 11. Nxd4 {[%emt 0:01:09]} cxd4 {[%emt 0:00:16]} 12. Nc4 {[%emt 0:02:17]} Bb4+ {[%emt 0:01:34]} 13. Bd2 {[%emt 0:02:10]} Bxd2+ {[%emt 0:00:45]} 14. Kxd2 {[%emt 0:00:11][%cal Og2b7]} O-O {[%emt 0:01:04]} 15. Rhc1 {[%emt 0:00:28]} f6 {[%emt 0:18:19]} 16. exf6 {[%emt 0:06:24]} (16. b4 $11) 16... Rxf6 $15 {[%emt 0:00:52]} 17. f4 {[%emt 0:00:34]} Raf8 {[%emt 0:02:17][%cal Oe6e5] Hoping for ...e5!} 18. Kd1 {[%emt 0:06:39] [#]} Nxf4 $1 {[%emt 0:06:17][%mdl 512]} 19. gxf4 {[%emt 0:01:28]} Qxf4 {[%emt 0:53:15]} 20. Nd2 $2 {[%emt 0:21:47]} (20. Bxb7 $2 Qb8 21. Bg2 Rf2 $19) (20. Kc2 $17 {is a better defense.} Qxh2 21. Rf1) 20... Qxh2 $19 {[%emt 0:00:00] Threatens to win with ...Rf2.} 21. Bf3 {[%emt 0:10:03]} Qg1+ {[%emt 0:00:00]} 22. Qe1 {[%emt 0:06:20]} ({Not} 22. Kc2 $2 Rc8+ 23. Nc4 Qg3 $19) 22... Qe3 {[%emt 0:00:00][%mdl 1024] Black has strong compensation.} 23. Be4 {[%emt 0:03:33] Loses the game.} (23. Rc7 $17 {was worth a try.} R8f7 24. Rac1 (24. Rxb7 $2 {too greedy.} Rxf3 25. Qxe3 Rxe3 $19) (24. Qxe3 $2 dxe3 25. Rxb7 exd2 $19) 24... Rxf3 25. Nxf3 Qxf3+ 26. Qe2) 23... Rf2 {[%emt 0:00:00]} 24. Rc7 $2 {[%emt 0:09:37]} (24. Rab1) 24... Ba4+ {[%emt 0:00:00] Black is clearly winning.} 25. b3 {[%emt 0:00:00]} Be8 {[%emt 0:00:00][%cal Of2d2] White must now prevent ...Rxd2+!} 26. Kc2 {[%emt 0:02:08]} Re2 {[%emt 0:00:00]} 27. Qc1 {[%emt 0:00:10] [#]} Rf1 $3 {[%emt 0:00:00][%mdl 576] Pin. A superb game by Harutyunyan.   Weighted Error Value: White=1.04/Black=0.18 (very precise)} 0-1